Workbook

Sheet 分子量
A1: mg/m3=分子量÷22.4×ppm PPM=22.4×mg/m3÷分子量
A2: 气体名称 | B2: 化学式 | C2: 分子量 | D2: 已知PPM，算mg/m3 | E2: 已知MG/M3，算ppm
A3: 异丁烯（VOC/VOCS/TVOC/非甲烷总烃） | B3: C4H8 | C3: 56.11 | D3: =C3/22.4*1 -> 2.504910714 | E3: =22.4*1/C3 -> 0.3992158261
A4: 异丁烷（汽油） | B4: C4H10 | C4: 58.12 | D4: =C4/22.4*1 -> 2.594642857 | E4: =22.4*1/C4 -> 0.3854094976
A5: 二氧化碳 | B5: CO2 | C5: 44.00095 | D5: =C5/22.4*1 -> 1.964328125 | E5: =22.4*1/C5 -> 0.5090799176
A6: 一氧化碳 | B6: CO | C6: 28.01 | D6: 1.250446429 | E6: 0.7997143877
A7: 甲烷 | B7: CH4 | C7: 16.04 | D7: 0.7160714286 | E7: 1.396508728
A8: 硫化氢 | B8: H2S | C8: 34.076 | D8: 1.52125 | E8: 0.6573541495
A9: 氧气 | B9: O2 | C9: 32 | D9: 1.428571429 | E9: 0.7
A10: 氮气 | B10: N2 | C10: 28.013 | D10: 1.250580357 | E10: 0.7996287438
A11: 氨气 | B11: NH3 | C11: 17.031 | D11: 0.7603125 | E11: 1.315248664 | F11: =E11*23660 -> 31118.78339 | H11: =20*E11 -> 26.30497328
A12: 氯气 | B12: CL2 | C12: 71 | D12: 3.169642857 | E12: 0.3154929577
A13: 氢气 | B13: H2 | C13: 1.008 | D13: 0.045 | E13: 22.22222222
A14: 氦气 | B14: He | C14: 4.002602 | D14: 0.1786875893 | E14: 5.596359568
A15: 氩气 | B15: Ar | C15: 39.95 | D15: 1.783482143 | E15: 0.5607008761
A16: 氙气 | B16: Xe | C16: 131.293 | D16: 5.861294643 | E16: 0.1706107713
A17: 甲醛 | B17: CH20 | C17: 30.03 | D17: 1.340625 | E17: 0.7459207459
A18: 臭氧 | B18: O3 | C18: 47.9982 | D18: 2.142776786 | E18: 0.4666841673 | F18: =E18*400 -> 186.6736669
A19: 一氧化氮 | B19: NO | C19: 30.01 | D19: 1.339732143 | E19: 0.7464178607
A20: 二氧化氮 | B20: NO2 | C20: 46.01 | D20: 2.054017857 | E20: 0.4868506846
A21: 二氧化硫 | B21: SO2 | C21: 64.06 | D21: 2.859821429 | E21: 0.3496721823
A22: 环氧乙烷 | B22: ETO | C22: 44.05 | D22: 1.966517857 | E22: 0.5085130533
A23: 磷化氢 | B23: PH3 | C23: 33.998 | D23: 1.517767857 | E23: 0.658862286
A24: 氯化氢 | B24: HCL | C24: 36.46 | D24: 1.627678571 | E24: 0.6143719144
A25: 氰化氢 | B25: HCN | C25: 27.03 | D25: 1.206696429 | E25: 0.828708842
A26: 光气(碳酰氯） | B26: COCL2 | C26: 98.92 | D26: 4.416071429 | E26: 0.2264456126
A27: 二氧化氯 | B27: CLO2 | C27: 67.46 | D27: 3.011607143 | E27: 0.3320486214
A28: 硅烷 | B28: SiH4 | C28: 32.12 | D28: 1.433928571 | E28: 0.697384807
A29: 溴甲烷 | B29: CH3Br | C29: 94.95 | D29: 4.238839286 | E29: 0.2359136388
A30: 硫酰氟 | B30: SO2F2 | C30: 102.06 | D30: 4.55625 | E30: 0.219478738
A31: 氟气 | B31: F2 | C31: 18.9984032 | D31: 0.848143 | E31: 1.179046458
A32: 氟化氢 | B32: HF | C32: 20.01 | D32: 0.8933035714 | E32: 1.11944028
A33: 溴化氢 | B33: HBr | C33: 80.91 | D33: 3.612053571 | E33: 0.2768508219
A34: 乙硼烷 | B34: B2H6 | C34: 27.67 | D34: 1.235267857 | E34: 0.8095410192
A35: 砷化氢 | B35: AsH3 | C35: 77.93 | D35: 3.479017857 | E35: 0.2874374439
A36: 锗烷 | B36: GeH4 | C36: 76.64 | D36: =C36/22.4*1 -> 3.421428571 | E36: =22.4*1/C36 -> 0.2922755741
A37: 联氨 | B37: N2H4 | C37: 32.05 | D37: 1.430803571 | E37: 0.6989079563
A38: 四氢噻吩 | B38: THT | C38: 88.17 | D38: 3.936160714 | E38: 0.2540546671
A39: 溴气 | B39: Br2 | C39: 79.9 | D39: 3.566964286 | E39: 0.280350438
A40: 乙炔 | B40: C2H2 | C40: 26.04 | D40: 1.1625 | E40: 0.8602150538
A41: 二硫化碳 | B41: CS2 | C41: 76.14 | D41: 3.399107143 | E41: 0.2941949041
A42: 乙醛 | B42: C2H40 | C42: 44.05 | D42: 1.966517857 | E42: 0.5085130533
A43: 丙烯腈 | B43: C3H3N | C43: 53.06 | D43: 2.36875 | E43: 0.4221635884
A44: 丁酮 | B44: MEK | C44: 72.11 | D44: 3.219196429 | E44: 0.3106365275
A45: 丙酮 | B45: MDK | C45: 58.08 | D45: 2.592857143 | E45: 0.3856749311
A46: 六氟化硫 | B46: SF6 | C46: 146.05 | D46: 6.520089286 | E46: 0.1533721328
A47: 乙烯 | B47: C2H4 | C47: 28.06 | D47: 1.252678571 | E47: 0.7982893799
A48: 异丙醇 | B48: C3H80 | C48: 60.07 | D48: 2.681696429 | E48: 0.3728982853
A49: 乙醇 | B49: C2H60 | C49: 46.07 | D49: 2.056696429 | E49: 0.4862166269
A50: 甲醇 | B50: CH40 | C50: 32.04 | D50: 1.430357143 | E50: 0.6991260924
A51: 甲胺 | B51: CH5N | C51: 31.0571 | D51: 1.386477679 | E51: 0.7212521452
A52: 甲硫醇 | B52: CH4S | C52: 48.1 | D52: 2.147321429 | E52: 0.4656964657
A53: 氯乙烯 | B53: C2H3CL | C53: 62.4987 | D53: 2.790120536 | E53: 0.3584074549
A54: 三氯乙烯 | B54: C2HCL3 | C54: 131.39 | D54: 5.865625 | E54: 0.1704848162
A55: 四氯乙烯 | B55: C2CL4 | C55: 165.82 | D55: 7.402678571 | E55: 0.1350862381
A56: 氯甲烷 | B56: CH3CL | C56: 50.49 | D56: 2.254017857 | E56: 0.4436522084
A57: 二氯甲烷 | B57: CH2CL2 | C57: 84.93 | D57: 3.791517857 | E57: 0.2637466149
A58: 三氯甲烷 | B58: CHCL3 | C58: 119.38 | D58: 5.329464286 | E58: 0.18763612
A59: 笑气 | B59: N2O | C59: 44.0128 | D59: 1.964857143 | E59: 0.508942853
A60: 三氟化氮 | B60: NF3 | C60: 71.0019 | D60: 3.169727679 | E60: 0.3154845152
A61: 过氧化氢 | B61: H2O2 | C61: 34.01 | D61: 1.518303571 | E61: 0.6586298148
A62: 苯乙烯 | B62: C8H8 | C62: 104.14 | D62: 4.649107143 | E62: 0.2150950643
A63: 四氢呋喃 | B63: THF | C63: 72.11 | D63: 3.219196429 | E63: 0.3106365275
A64: 苯 | B64: C6H6 | C64: 78.11 | D64: =C64/22.4*1 -> 3.487053571 | E64: =22.4*1/C64 -> 0.2867750608
A65: 甲苯 | B65: C7H8 | C65: 92.14 | D65: =C65/22.4*1 -> 4.113392857 | E65: =22.4*1/C65 -> 0.2431083134
A66: 二甲苯 | B66: C8H10 | C66: 106.17 | D66: =C66/22.4*1 -> 4.739732143 | E66: =22.4*1/C66 -> 0.2109823867
